[Event "Titled Tuesday Blitz November 29 Early 2022"]
[White "Vlassov, Nikolai"]
[Black "Pakleza, Zbigniew"]
[WhiteFideId "4103360"]
[BlackFideId "1119290"]
[WhiteElo "2324"]
[BlackElo "2411"]
[Result "0-1"]
[Round "05"]
[TimeControl "180+1"]
[Date "2022.11.30"]
[WhiteClock "0:00:05"]
[BlackClock "0:00:06"]

1. e4 {[%clk 0:03:00]}  d6 {[%clk 0:03:00]} 2. f4 {[%clk 0:03:00]}  Nf6 {[%clk 0:03:00]} 3. Nc3 {[%clk 0:03:00]}  d5 {[%clk 0:03:01]} 4. e5 {[%clk 0:03:00]}  d4 {[%clk 0:03:01]} 5. Nce2 {[%clk 0:02:58]}  Nd5 {[%clk 0:03:01]} 6. Nxd4 {[%clk 0:02:46]}  Nxf4 {[%clk 0:03:02]} 7. Ngf3 {[%clk 0:02:46]}  e6 {[%clk 0:02:41]} 8. g3 {[%clk 0:02:25]}  Ng6 {[%clk 0:02:39]} 9. Bg2 {[%clk 0:02:08]}  c5 {[%clk 0:02:39]} 10. Nb5 {[%clk 0:02:03]}  Nc6 {[%clk 0:02:37]} 11. Qe2 {[%clk 0:01:59]}  a6 {[%clk 0:02:29]} 12. Nc3 {[%clk 0:01:58]}  Qc7 {[%clk 0:02:25]} 13. d3 {[%clk 0:01:43]}  Ncxe5 {[%clk 0:02:20]} 14. O-O {[%clk 0:01:32]}  Be7 {[%clk 0:02:19]} 15. a4 {[%clk 0:01:18]}  O-O {[%clk 0:02:16]} 16. a5 {[%clk 0:01:16]}  Nc6 {[%clk 0:02:07]} 17. Ne4 {[%clk 0:01:03]}  Nxa5 {[%clk 0:01:55]} 18. h4 {[%clk 0:01:03]}  Nc6 {[%clk 0:01:44]} 19. h5 {[%clk 0:01:03]}  Nge5 {[%clk 0:01:44]} 20. Bf4 {[%clk 0:01:01]}  Nxf3+ {[%clk 0:01:42]} 21. Qxf3 {[%clk 0:01:00]}  e5 {[%clk 0:01:40]} 22. Be3 {[%clk 0:00:53]}  Nd4 {[%clk 0:01:27]} 23. Bxd4 {[%clk 0:00:45]}  cxd4 {[%clk 0:01:26]} 24. h6 {[%clk 0:00:46]}  f5 {[%clk 0:01:22]} 25. hxg7 {[%clk 0:00:45]}  Kxg7 {[%clk 0:01:23]} 26. Nd2 {[%clk 0:00:40]}  Qxc2 {[%clk 0:01:03]} 27. Nc4 {[%clk 0:00:38]}  e4 {[%clk 0:00:57]} 28. Qf4 {[%clk 0:00:35]}  Qxd3 {[%clk 0:00:54]} 29. Qc7 {[%clk 0:00:29]}  Rf7 {[%clk 0:00:37]} 30. Ne5 {[%clk 0:00:28]}  Qxg3 {[%clk 0:00:33]} 31. Rac1 {[%clk 0:00:13]}  Be6 {[%clk 0:00:13]} 32. Nxf7 {[%clk 0:00:14]}  Qxc7 {[%clk 0:00:14]} 33. Rxc7 {[%clk 0:00:13]}  Kxf7 {[%clk 0:00:15]} 34. Bxe4 {[%clk 0:00:13]}  Rg8+ {[%clk 0:00:12]} 35. Kh1 {[%clk 0:00:12]}  Kf6 {[%clk 0:00:13]} 36. Bxb7 {[%clk 0:00:11]}  a5 {[%clk 0:00:10]} 37. Rc6 {[%clk 0:00:11]}  Rb8 {[%clk 0:00:07]} 38. Rc7 {[%clk 0:00:09]}  Rxb7 {[%clk 0:00:06]} 39. Rxb7 {[%clk 0:00:10]}  Bd5+ {[%clk 0:00:06]} 40. Kh2 {[%clk 0:00:11]}  Bxb7 {[%clk 0:00:07]} 41. Kg3 {[%clk 0:00:08]}  Bd6+ {[%clk 0:00:06]} 42. Kh4 {[%clk 0:00:08]}  d3 {[%clk 0:00:06]} 43. Rd1 {[%clk 0:00:07]}  Be4 {[%clk 0:00:05]} 44. Kh5 {[%clk 0:00:06]}  Ke5 {[%clk 0:00:05]} 45. Kg5 {[%clk 0:00:06]}  Be7+ {[%clk 0:00:05]} 46. Kh6 {[%clk 0:00:06]}  f4 {[%clk 0:00:06]} 47. Rd2 {[%clk 0:00:06]}  f3 {[%clk 0:00:06]} 48. Rh2 {[%clk 0:00:05]}  Bb4 {[%clk 0:00:05]} 49. Rh5+ {[%clk 0:00:05]}  Kd4 {[%clk 0:00:06]} 50. b3 {[%clk 0:00:05]}  d2 {[%clk 0:00:06]} 51. Rh1 {[%clk 0:00:05]}  f2 {[%clk 0:00:06]} 52. Rf1 {[%clk 0:00:05]}  Ke3 {[%clk 0:00:06]} 0-1


[Site "https://www.chess.com"]

[Event "Titled Tuesday Blitz November 29 Early 2022"]
[White "Von Buelow, Georg"]
[Black "Figorito, Nick"]
[WhiteFideId "4620658"]
[BlackFideId "30923689"]
[WhiteElo "2210"]
[BlackElo "2367"]
[Result "0-1"]
[Round "05"]
[TimeControl "180+1"]
[Date "2022.11.30"]
[WhiteClock "0:01:10"]
[BlackClock "0:01:15"]

1. e4 {[%clk 0:02:55]}  e6 {[%clk 0:03:00]} 2. d4 {[%clk 0:02:55]}  d5 {[%clk 0:03:00]} 3. Nc3 {[%clk 0:02:55]}  Bb4 {[%clk 0:03:00]} 4. e5 {[%clk 0:02:55]}  c5 {[%clk 0:03:01]} 5. a3 {[%clk 0:02:56]}  Bxc3+ {[%clk 0:03:01]} 6. bxc3 {[%clk 0:02:56]}  Ne7 {[%clk 0:03:02]} 7. h4 {[%clk 0:02:56]}  Qa5 {[%clk 0:02:56]} 8. Bd2 {[%clk 0:02:54]}  Qa4 {[%clk 0:02:56]} 9. Nf3 {[%clk 0:02:54]}  b6 {[%clk 0:02:54]} 10. h5 {[%clk 0:02:51]}  h6 {[%clk 0:02:54]} 11. Rh4 {[%clk 0:02:50]}  Nf5 {[%clk 0:02:52]} 12. Rf4 {[%clk 0:02:49]}  Ba6 {[%clk 0:02:42]} 13. dxc5 {[%clk 0:02:43]}  Qd7 {[%clk 0:02:19]} 14. cxb6 {[%clk 0:02:42]}  axb6 {[%clk 0:02:09]} 15. Nd4 {[%clk 0:02:27]}  Bxf1 {[%clk 0:02:05]} 16. Kxf1 {[%clk 0:02:17]}  Nc6 {[%clk 0:01:53]} 17. Nxf5 {[%clk 0:01:54]}  exf5 {[%clk 0:01:54]} 18. c4 {[%clk 0:01:37]}  O-O {[%clk 0:01:46]} 19. cxd5 {[%clk 0:01:36]}  Qxd5 {[%clk 0:01:46]} 20. Rxf5 {[%clk 0:01:36]}  Nd4 {[%clk 0:01:36]} 21. Rf4 {[%clk 0:01:27]}  Qc4+ {[%clk 0:01:16]} 22. Ke1 {[%clk 0:01:10]}  Nxc2+ {[%clk 0:01:15]} 23. Qxc2 {[%clk 0:01:09]}  Qxc2 {[%clk 0:01:15]} 24. Rxf7 {[%clk 0:01:10]} 0-1


[Site "https://www.chess.com"]

[Event "Titled Tuesday Blitz November 29 Early 2022"]
[White "Xiong, Jeffery"]
[Black "Baskakov, Egor"]
[WhiteFideId "2047640"]
[BlackFideId "24197866"]
[WhiteElo "3004"]
[BlackElo "2842"]
[Result "0-1"]
[Round "05"]
[TimeControl "180+1"]
[Date "2022.11.30"]
[WhiteClock "0:00:24"]
[BlackClock "0:00:19"]

1. d4 {[%clk 0:03:00]}  Nf6 {[%clk 0:02:59]} 2. c4 {[%clk 0:02:59]}  e6 {[%clk 0:02:59]} 3. g3 {[%clk 0:02:59]}  d5 {[%clk 0:03:00]} 4. Bg2 {[%clk 0:02:58]}  Be7 {[%clk 0:03:00]} 5. Nf3 {[%clk 0:02:54]}  O-O {[%clk 0:03:01]} 6. O-O {[%clk 0:02:54]}  Ne4 {[%clk 0:03:01]} 7. Qc2 {[%clk 0:02:46]}  f5 {[%clk 0:03:01]} 8. Nc3 {[%clk 0:02:46]}  c6 {[%clk 0:03:01]} 9. Rb1 {[%clk 0:02:40]}  Bd7 {[%clk 0:03:00]} 10. b4 {[%clk 0:02:40]}  Be8 {[%clk 0:03:00]} 11. b5 {[%clk 0:02:23]}  cxb5 {[%clk 0:02:57]} 12. cxd5 {[%clk 0:02:23]}  Qc8 {[%clk 0:02:57]} 13. Bg5 {[%clk 0:01:37]}  Bxg5 {[%clk 0:02:51]} 14. Nxg5 {[%clk 0:01:38]}  Nxg5 {[%clk 0:02:34]} 15. Rfc1 {[%clk 0:01:34]}  exd5 {[%clk 0:02:17]} 16. Nxb5 {[%clk 0:01:34]}  Nc6 {[%clk 0:01:59]} 17. Bxd5+ {[%clk 0:01:22]}  Kh8 {[%clk 0:01:58]} 18. Qd2 {[%clk 0:01:21]}  Ne4 {[%clk 0:01:56]} 19. Qe3 {[%clk 0:01:15]}  Qd8 {[%clk 0:01:40]} 20. Bc4 {[%clk 0:01:08]}  a6 {[%clk 0:01:35]} 21. Nc3 {[%clk 0:01:07]}  b5 {[%clk 0:01:29]} 22. Nxe4 {[%clk 0:00:59]}  fxe4 {[%clk 0:01:23]} 23. d5 {[%clk 0:00:57]}  bxc4 {[%clk 0:01:22]} 24. dxc6 {[%clk 0:00:58]}  Bxc6 {[%clk 0:01:23]} 25. Rxc4 {[%clk 0:00:59]}  Rc8 {[%clk 0:01:00]} 26. Rbc1 {[%clk 0:00:57]}  Qf6 {[%clk 0:00:41]} 27. h4 {[%clk 0:00:41]}  h6 {[%clk 0:00:40]} 28. a4 {[%clk 0:00:35]}  Bb7 {[%clk 0:00:35]} 29. Rxc8 {[%clk 0:00:35]}  Bxc8 {[%clk 0:00:36]} 30. Rc7 {[%clk 0:00:32]}  Bf5 {[%clk 0:00:34]} 31. a5 {[%clk 0:00:32]}  Qa1+ {[%clk 0:00:31]} 32. Kg2 {[%clk 0:00:31]}  Qxa5 {[%clk 0:00:30]} 33. Ra7 {[%clk 0:00:29]}  Qe5 {[%clk 0:00:20]} 34. Rxa6 {[%clk 0:00:29]}  Bc8 {[%clk 0:00:20]} 35. Ra8 {[%clk 0:00:24]}  Bh3+ {[%clk 0:00:19]} 0-1


[Site "https://www.chess.com"]

[Event "Titled Tuesday Blitz November 29 Early 2022"]
[White "Yano, William Jorge Froes"]
[Black "Larina, Maria"]
[WhiteFideId "2112949"]
[BlackFideId "24113182"]
[WhiteElo "2122"]
[BlackElo "1848"]
[Result "1-0"]
[Round "05"]
[TimeControl "180+1"]
[Date "2022.11.30"]
[WhiteClock "0:00:29"]
[BlackClock "0:00:05"]

1. e4 {[%clk 0:02:59]}  c6 {[%clk 0:02:57]} 2. Nc3 {[%clk 0:02:58]}  d5 {[%clk 0:02:57]} 3. Qf3 {[%clk 0:02:59]}  e6 {[%clk 0:02:33]} 4. e5 {[%clk 0:02:55]}  c5 {[%clk 0:02:26]} 5. Qg3 {[%clk 0:02:55]}  Nc6 {[%clk 0:02:23]} 6. f4 {[%clk 0:02:54]}  Nb4 {[%clk 0:02:18]} 7. Bd3 {[%clk 0:02:32]}  c4 {[%clk 0:02:11]} 8. a3 {[%clk 0:02:33]}  Qa5 {[%clk 0:01:52]} 9. Rb1 {[%clk 0:01:54]}  cxd3 {[%clk 0:01:39]} 10. axb4 {[%clk 0:01:54]}  dxc2 {[%clk 0:01:37]} 11. bxa5 {[%clk 0:01:53]}  cxb1=Q {[%clk 0:01:34]} 12. Nxb1 {[%clk 0:01:53]}  Nh6 {[%clk 0:01:15]} 13. Nf3 {[%clk 0:01:49]}  Nf5 {[%clk 0:01:15]} 14. Qf2 {[%clk 0:01:49]}  Bd7 {[%clk 0:01:08]} 15. Nc3 {[%clk 0:01:45]}  h5 {[%clk 0:01:02]} 16. O-O {[%clk 0:01:42]}  h4 {[%clk 0:01:01]} 17. d4 {[%clk 0:01:29]}  b6 {[%clk 0:00:49]} 18. Be3 {[%clk 0:01:17]}  bxa5 {[%clk 0:00:43]} 19. Ra1 {[%clk 0:01:16]}  Bb4 {[%clk 0:00:43]} 20. g4 {[%clk 0:00:55]}  hxg3 {[%clk 0:00:42]} 21. hxg3 {[%clk 0:00:55]}  Rh3 {[%clk 0:00:41]} 22. Kg2 {[%clk 0:00:35]}  Rxg3+ {[%clk 0:00:28]} 23. Qxg3 {[%clk 0:00:35]}  Nxg3 {[%clk 0:00:29]} 24. Kxg3 {[%clk 0:00:36]}  Rc8 {[%clk 0:00:23]} 25. Bd2 {[%clk 0:00:35]}  g6 {[%clk 0:00:18]} 26. Rh1 {[%clk 0:00:33]}  Ke7 {[%clk 0:00:18]} 27. Rh7 {[%clk 0:00:32]}  Be8 {[%clk 0:00:16]} 28. Ng5 {[%clk 0:00:31]}  Kf8 {[%clk 0:00:14]} 29. Rh2 {[%clk 0:00:29]}  Kg8 {[%clk 0:00:14]} 30. Nh7 {[%clk 0:00:28]}  Bc6 {[%clk 0:00:08]} 31. Nf6+ {[%clk 0:00:28]}  Kf8 {[%clk 0:00:05]} 32. Rh8+ {[%clk 0:00:28]}  Ke7 {[%clk 0:00:05]} 33. Rxc8 {[%clk 0:00:29]} 1-0


[Site "https://www.chess.com"]

[Event "Titled Tuesday Blitz November 29 Early 2022"]
[White "Zaichenko, Daria"]
[Black "Pourkashiyan, Atousa"]
[WhiteFideId "4197453"]
[BlackFideId "12502014"]
[WhiteElo "2039"]
[BlackElo "2247"]
[Result "1-0"]
[Round "05"]
[TimeControl "180+1"]
[Date "2022.11.30"]
[WhiteClock "0:00:12"]
[BlackClock "0:00:04"]

1. e4 {[%clk 0:02:57]}  c5 {[%clk 0:02:55]} 2. Nf3 {[%clk 0:02:57]}  e6 {[%clk 0:02:55]} 3. d4 {[%clk 0:02:58]}  cxd4 {[%clk 0:02:56]} 4. Nxd4 {[%clk 0:02:56]}  a6 {[%clk 0:02:56]} 5. c4 {[%clk 0:02:52]}  Nf6 {[%clk 0:02:57]} 6. Nc3 {[%clk 0:02:52]}  Qc7 {[%clk 0:02:57]} 7. Be3 {[%clk 0:02:48]}  Bb4 {[%clk 0:02:54]} 8. Bd3 {[%clk 0:02:41]}  Nc6 {[%clk 0:02:45]} 9. O-O {[%clk 0:02:13]}  O-O {[%clk 0:02:26]} 10. Nxc6 {[%clk 0:02:02]}  dxc6 {[%clk 0:02:20]} 11. f4 {[%clk 0:02:01]}  e5 {[%clk 0:02:05]} 12. f5 {[%clk 0:01:54]}  b5 {[%clk 0:01:58]} 13. c5 {[%clk 0:01:52]}  Qe7 {[%clk 0:01:47]} 14. Kh1 {[%clk 0:01:45]}  Bxc5 {[%clk 0:01:43]} 15. Bg5 {[%clk 0:01:44]}  h6 {[%clk 0:01:31]} 16. Bh4 {[%clk 0:01:43]}  Be3 {[%clk 0:01:30]} 17. Qe2 {[%clk 0:01:40]}  Bg5 {[%clk 0:01:28]} 18. Bxg5 {[%clk 0:01:39]}  hxg5 {[%clk 0:01:28]} 19. Rad1 {[%clk 0:01:35]}  Bb7 {[%clk 0:01:26]} 20. a3 {[%clk 0:01:31]}  Rad8 {[%clk 0:01:25]} 21. b4 {[%clk 0:01:29]}  Rd4 {[%clk 0:01:25]} 22. Qe3 {[%clk 0:01:25]}  Rfd8 {[%clk 0:01:21]} 23. Ne2 {[%clk 0:01:22]}  Nxe4 {[%clk 0:01:16]} 24. Nxd4 {[%clk 0:01:20]}  Nc3 {[%clk 0:01:06]} 25. f6 {[%clk 0:01:14]}  Qc7 {[%clk 0:00:51]} 26. Nf5 {[%clk 0:00:51]}  Nxd1 {[%clk 0:00:49]} 27. Ne7+ {[%clk 0:00:44]}  Kf8 {[%clk 0:00:43]} 28. Qh3 {[%clk 0:00:44]}  gxf6 {[%clk 0:00:36]} 29. Qh8+ {[%clk 0:00:36]}  Kxe7 {[%clk 0:00:35]} 30. Qxf6+ {[%clk 0:00:36]}  Ke8 {[%clk 0:00:23]} 31. Qh8+ {[%clk 0:00:26]}  Kd7 {[%clk 0:00:09]} 32. Rxf7+ {[%clk 0:00:23]}  Kc8 {[%clk 0:00:09]} 33. Rxc7+ {[%clk 0:00:22]}  Kxc7 {[%clk 0:00:10]} 34. Qh7+ {[%clk 0:00:20]}  Kb8 {[%clk 0:00:09]} 35. Kg1 {[%clk 0:00:18]}  Nb2 {[%clk 0:00:05]} 36. Bf5 {[%clk 0:00:14]}  Nc4 {[%clk 0:00:04]} 37. Qe7 {[%clk 0:00:13]}  Rg8 {[%clk 0:00:02]} 38. Be6 {[%clk 0:00:12]}  Rh8 {[%clk 0:00:03]} 39. Bxc4 {[%clk 0:00:12]}  bxc4 {[%clk 0:00:03]} 40. Qxe5+ {[%clk 0:00:12]}  Ka7 {[%clk 0:00:02]} 41. Qxh8 {[%clk 0:00:12]}  a5 {[%clk 0:00:03]} 42. Qd4+ {[%clk 0:00:12]}  Ka6 {[%clk 0:00:04]} 43. Qxc4+ {[%clk 0:00:12]}  Ka7 {[%clk 0:00:03]} 44. Qc5+ {[%clk 0:00:13]}  Ka6 {[%clk 0:00:04]} 45. Qxa5# {[%clk 0:00:12]} 1-0


[Site "https://www.chess.com"]

[Event "Titled Tuesday Blitz November 29 Early 2022"]
[White "Zhigalko, Sergei"]
[Black "Szpar, Milosz"]
[WhiteFideId "13502956"]
[BlackFideId "1184989"]
[WhiteElo "2892"]
[BlackElo "2678"]
[Result "1/2-1/2"]
[Round "05"]
[TimeControl "180+1"]
[Date "2022.11.30"]
[WhiteClock "0:00:06"]
[BlackClock "0:00:03"]

1. e4 {[%clk 0:03:00]}  e6 {[%clk 0:02:58]} 2. d4 {[%clk 0:03:00]}  d5 {[%clk 0:02:58]} 3. e5 {[%clk 0:03:01]}  c5 {[%clk 0:02:58]} 4. c3 {[%clk 0:03:02]}  Nc6 {[%clk 0:02:59]} 5. Nf3 {[%clk 0:03:02]}  Bd7 {[%clk 0:02:59]} 6. Be2 {[%clk 0:03:02]}  Nge7 {[%clk 0:02:53]} 7. Na3 {[%clk 0:03:01]}  cxd4 {[%clk 0:02:53]} 8. cxd4 {[%clk 0:03:00]}  Ng6 {[%clk 0:02:39]} 9. h4 {[%clk 0:03:00]}  Bb4+ {[%clk 0:02:27]} 10. Kf1 {[%clk 0:03:00]}  h6 {[%clk 0:02:12]} 11. Nc2 {[%clk 0:02:59]}  Be7 {[%clk 0:02:10]} 12. g3 {[%clk 0:02:57]}  O-O {[%clk 0:02:06]} 13. Bd3 {[%clk 0:02:50]}  Qe8 {[%clk 0:01:59]} 14. h5 {[%clk 0:02:32]}  Nh8 {[%clk 0:01:59]} 15. Bf4 {[%clk 0:02:33]}  f6 {[%clk 0:01:55]} 16. exf6 {[%clk 0:02:27]}  Bxf6 {[%clk 0:01:55]} 17. Qe2 {[%clk 0:02:07]}  Nf7 {[%clk 0:01:54]} 18. Re1 {[%clk 0:02:05]}  Qe7 {[%clk 0:01:52]} 19. Kg2 {[%clk 0:01:39]}  Ng5 {[%clk 0:01:29]} 20. Ne5 {[%clk 0:01:14]}  Bxe5 {[%clk 0:01:21]} 21. dxe5 {[%clk 0:01:12]}  Rac8 {[%clk 0:01:10]} 22. Qg4 {[%clk 0:01:04]}  Qc5 {[%clk 0:00:48]} 23. Re2 {[%clk 0:00:44]}  Qe7 {[%clk 0:00:43]} 24. a3 {[%clk 0:00:41]}  a5 {[%clk 0:00:40]} 25. Rd1 {[%clk 0:00:30]}  a4 {[%clk 0:00:38]} 26. Bg6 {[%clk 0:00:25]}  Na5 {[%clk 0:00:36]} 27. Nd4 {[%clk 0:00:24]}  Nb3 {[%clk 0:00:36]} 28. Bxg5 {[%clk 0:00:18]}  Qxg5 {[%clk 0:00:35]} 29. Qxg5 {[%clk 0:00:18]}  hxg5 {[%clk 0:00:36]} 30. Nf3 {[%clk 0:00:18]}  g4 {[%clk 0:00:36]} 31. Nh2 {[%clk 0:00:15]}  Rc4 {[%clk 0:00:36]} 32. Bd3 {[%clk 0:00:07]}  Rd4 {[%clk 0:00:34]} 33. Bc2 {[%clk 0:00:08]}  Rxd1 {[%clk 0:00:33]} 34. Bxd1 {[%clk 0:00:08]}  Bc6 {[%clk 0:00:26]} 35. Bxb3 {[%clk 0:00:04]}  axb3 {[%clk 0:00:26]} 36. Rd2 {[%clk 0:00:04]}  Rf5 {[%clk 0:00:22]} 37. Nxg4 {[%clk 0:00:04]}  d4+ {[%clk 0:00:21]} 38. Kg1 {[%clk 0:00:01]}  Rxh5 {[%clk 0:00:22]} 39. f4 {[%clk 0:00:02]}  Rh1+ {[%clk 0:00:16]} 40. Kf2 {[%clk 0:00:02]}  Rc1 {[%clk 0:00:17]} 41. Rxd4 {[%clk 0:00:02]}  Rc2+ {[%clk 0:00:17]} 42. Ke3 {[%clk 0:00:02]}  Rxb2 {[%clk 0:00:18]} 43. Rb4 {[%clk 0:00:03]}  Rg2 {[%clk 0:00:17]} 44. Nf2 {[%clk 0:00:02]}  Rxg3+ {[%clk 0:00:17]} 45. Ke2 {[%clk 0:00:02]}  Rc3 {[%clk 0:00:17]} 46. Kd2 {[%clk 0:00:02]}  Rc2+ {[%clk 0:00:17]} 47. Ke3 {[%clk 0:00:03]}  Bd5 {[%clk 0:00:14]} 48. Nd3 {[%clk 0:00:03]}  Ra2 {[%clk 0:00:12]} 49. a4 {[%clk 0:00:03]}  Rc2 {[%clk 0:00:08]} 50. Kd4 {[%clk 0:00:03]}  Kh7 {[%clk 0:00:07]} 51. Nc5 {[%clk 0:00:02]}  Kh8 {[%clk 0:00:06]} 52. Nxb3 {[%clk 0:00:02]}  Rb2 {[%clk 0:00:07]} 53. Kc3 {[%clk 0:00:03]}  Rf2 {[%clk 0:00:06]} 54. Nc5 {[%clk 0:00:02]}  Rf3+ {[%clk 0:00:06]} 55. Kd2 {[%clk 0:00:03]}  Rf2+ {[%clk 0:00:07]} 56. Ke3 {[%clk 0:00:03]}  Rf3+ {[%clk 0:00:07]} 57. Ke2 {[%clk 0:00:04]}  Ra3 {[%clk 0:00:08]} 58. Nxb7 {[%clk 0:00:04]}  Bxb7 {[%clk 0:00:04]} 59. Rxb7 {[%clk 0:00:05]}  Rxa4 {[%clk 0:00:05]} 60. Kf3 {[%clk 0:00:05]}  Kg8 {[%clk 0:00:05]} 61. Re7 {[%clk 0:00:05]}  Ra6 {[%clk 0:00:05]} 62. Kg4 {[%clk 0:00:06]}  Kf8 {[%clk 0:00:05]} 63. Rd7 {[%clk 0:00:07]}  Ra1 {[%clk 0:00:06]} 64. Rb7 {[%clk 0:00:03]}  Rg1+ {[%clk 0:00:05]} 65. Kf3 {[%clk 0:00:04]}  Rf1+ {[%clk 0:00:06]} 66. Ke3 {[%clk 0:00:04]}  Re1+ {[%clk 0:00:06]} 67. Kf2 {[%clk 0:00:05]}  Rd1 {[%clk 0:00:06]} 68. Kf3 {[%clk 0:00:05]}  Rf1+ {[%clk 0:00:06]} 69. Kg3 {[%clk 0:00:05]}  Rg1+ {[%clk 0:00:06]} 70. Kf2 {[%clk 0:00:06]}  Rh1 {[%clk 0:00:06]} 71. Rc7 {[%clk 0:00:06]}  Rh4 {[%clk 0:00:04]} 72. Kg3 {[%clk 0:00:06]}  Rh1 {[%clk 0:00:04]} 73. Rc6 {[%clk 0:00:06]}  Kf7 {[%clk 0:00:03]} 74. Rc7+ {[%clk 0:00:06]}  Kg6 {[%clk 0:00:04]} 75. Re7 {[%clk 0:00:06]}  Kf5 {[%clk 0:00:02]} 76. Rf7+ {[%clk 0:00:04]}  Ke4 {[%clk 0:00:02]} 77. Kg2 {[%clk 0:00:04]}  Rh4 {[%clk 0:00:02]} 78. f5 {[%clk 0:00:04]}  Kxe5 {[%clk 0:00:02]} 79. fxe6 {[%clk 0:00:05]}  Kxe6 {[%clk 0:00:02]} 80. Rxg7 {[%clk 0:00:05]}  Kf5 {[%clk 0:00:02]} 81. Rg3 {[%clk 0:00:06]}  Rg4 {[%clk 0:00:03]} 82. Kf3 {[%clk 0:00:05]}  Rxg3+ {[%clk 0:00:03]} 83. Kxg3 {[%clk 0:00:06]} 1/2-1/2


[Site "https://www.chess.com"]

[Event "Titled Tuesday Blitz November 29 Early 2022"]
[White "Aarav Dengla"]
[Black "Bashirli, Saadat"]
[WhiteFideId "45059756"]
[BlackFideId "13429990"]
[WhiteElo "2261"]
[BlackElo "1408"]
[Result "0-1"]
[Round "06"]
[TimeControl "180+1"]
[Date "2022.11.30"]
[WhiteClock "0:00:04"]
[BlackClock "0:01:41"]

1. e4 {[%clk 0:02:56]}  c5 {[%clk 0:02:59]} 2. Nf3 {[%clk 0:02:33]}  g6 {[%clk 0:02:58]} 3. c3 {[%clk 0:02:29]}  Nf6 {[%clk 0:02:57]} 4. e5 {[%clk 0:02:27]}  Nd5 {[%clk 0:02:57]} 5. d4 {[%clk 0:02:21]}  cxd4 {[%clk 0:02:58]} 6. cxd4 {[%clk 0:02:17]}  d6 {[%clk 0:02:56]} 7. Nc3 {[%clk 0:02:04]}  Nxc3 {[%clk 0:02:52]} 8. bxc3 {[%clk 0:02:00]}  Nc6 {[%clk 0:02:52]} 9. exd6 {[%clk 0:01:47]}  Qxd6 {[%clk 0:02:51]} 10. Bc4 {[%clk 0:01:46]}  Bg7 {[%clk 0:02:48]} 11. O-O {[%clk 0:01:20]}  O-O {[%clk 0:02:47]} 12. h3 {[%clk 0:01:04]}  Bf5 {[%clk 0:02:46]} 13. Re1 {[%clk 0:00:54]}  Rfd8 {[%clk 0:02:42]} 14. Qa4 {[%clk 0:00:41]}  e5 {[%clk 0:02:32]} 15. Ba3 {[%clk 0:00:17]}  Qc7 {[%clk 0:02:32]} 16. Ng5 {[%clk 0:00:16]}  Rd7 {[%clk 0:02:14]} 17. dxe5 {[%clk 0:00:15]}  Nxe5 {[%clk 0:02:13]} 18. Bb5 {[%clk 0:00:15]}  Rd2 {[%clk 0:02:08]} 19. Rad1 {[%clk 0:00:16]}  Rxd1 {[%clk 0:02:03]} 20. Rxd1 {[%clk 0:00:16]}  h6 {[%clk 0:02:03]} 21. Bd6 {[%clk 0:00:16]}  Qxc3 {[%clk 0:02:02]} 22. Bxe5 {[%clk 0:00:14]}  Bxe5 {[%clk 0:01:54]} 23. Nf3 {[%clk 0:00:11]}  Bc2 {[%clk 0:01:47]} 24. Qc4 {[%clk 0:00:08]}  Qxc4 {[%clk 0:01:46]} 25. Bxc4 {[%clk 0:00:09]}  Bxd1 {[%clk 0:01:46]} 26. Nxe5 {[%clk 0:00:10]}  Rc8 {[%clk 0:01:43]} 27. Bxf7+ {[%clk 0:00:09]}  Kg7 {[%clk 0:01:43]} 28. Be6 {[%clk 0:00:08]}  Re8 {[%clk 0:01:43]} 29. Bg4 {[%clk 0:00:04]}  Rxe5 {[%clk 0:01:41]} 0-1


[Site "https://www.chess.com"]

[Event "Titled Tuesday Blitz November 29 Early 2022"]
[White "Adnan, Habib"]
[Black "Winkels, Marcel"]
[WhiteFideId "11202270"]
[BlackFideId "1003887"]
[WhiteElo "2110"]
[BlackElo "1900"]
[Result "1-0"]
[Round "06"]
[TimeControl "180+1"]
[Date "2022.11.30"]
[WhiteClock "0:00:36"]
[BlackClock "0:00:01"]

1. d4 {[%clk 0:03:00]}  Nf6 {[%clk 0:02:58]} 2. c4 {[%clk 0:03:00]}  g6 {[%clk 0:02:57]} 3. Nf3 {[%clk 0:02:59]}  Bg7 {[%clk 0:02:56]} 4. Nc3 {[%clk 0:03:00]}  d5 {[%clk 0:02:56]} 5. Bg5 {[%clk 0:03:00]}  Ne4 {[%clk 0:02:55]} 6. Bh4 {[%clk 0:03:00]}  Nxc3 {[%clk 0:02:53]} 7. bxc3 {[%clk 0:03:01]}  dxc4 {[%clk 0:02:53]} 8. e3 {[%clk 0:03:01]}  Be6 {[%clk 0:02:46]} 9. Qb1 {[%clk 0:02:52]}  Bd5 {[%clk 0:02:39]} 10. e4 {[%clk 0:02:51]}  Bc6 {[%clk 0:02:38]} 11. Bxc4 {[%clk 0:02:51]}  O-O {[%clk 0:02:37]} 12. O-O {[%clk 0:02:48]}  b6 {[%clk 0:02:23]} 13. Qc2 {[%clk 0:02:43]}  Nd7 {[%clk 0:02:20]} 14. Rad1 {[%clk 0:02:37]}  Nf6 {[%clk 0:02:19]} 15. d5 {[%clk 0:02:37]}  Bb7 {[%clk 0:02:17]} 16. e5 {[%clk 0:02:34]}  Ng4 {[%clk 0:02:03]} 17. Rfe1 {[%clk 0:02:33]}  Qe8 {[%clk 0:01:47]} 18. Qe2 {[%clk 0:02:13]}  Rd8 {[%clk 0:01:43]} 19. Bb3 {[%clk 0:01:41]}  Nh6 {[%clk 0:01:27]} 20. d6 {[%clk 0:01:33]}  cxd6 {[%clk 0:01:23]} 21. exd6 {[%clk 0:01:32]}  exd6 {[%clk 0:00:56]} 22. Bxd8 {[%clk 0:01:28]}  Qxd8 {[%clk 0:00:55]} 23. Bd5 {[%clk 0:01:19]}  Bc8 {[%clk 0:00:48]} 24. c4 {[%clk 0:01:16]}  Bc3 {[%clk 0:00:41]} 25. Rf1 {[%clk 0:01:15]}  Bg4 {[%clk 0:00:34]} 26. Qd3 {[%clk 0:01:13]}  Bg7 {[%clk 0:00:30]} 27. h3 {[%clk 0:01:11]}  Bf5 {[%clk 0:00:29]} 28. Qd2 {[%clk 0:01:11]}  Re8 {[%clk 0:00:24]} 29. Nd4 {[%clk 0:01:07]}  Be4 {[%clk 0:00:23]} 30. Nc6 {[%clk 0:01:03]}  Qd7 {[%clk 0:00:19]} 31. Rfe1 {[%clk 0:01:02]}  Bxd5 {[%clk 0:00:14]} 32. Rxe8+ {[%clk 0:01:00]}  Qxe8 {[%clk 0:00:14]} 33. cxd5 {[%clk 0:01:01]}  Nf5 {[%clk 0:00:12]} 34. Re1 {[%clk 0:01:01]}  Qd7 {[%clk 0:00:11]} 35. Qf4 {[%clk 0:00:57]}  h5 {[%clk 0:00:09]} 36. Qg5 {[%clk 0:00:52]}  Kh7 {[%clk 0:00:07]} 37. Qd8 {[%clk 0:00:50]}  Qb7 {[%clk 0:00:05]} 38. g4 {[%clk 0:00:42]}  hxg4 {[%clk 0:00:04]} 39. hxg4 {[%clk 0:00:42]}  Nd4 {[%clk 0:00:02]} 40. Qh4+ {[%clk 0:00:37]}  Kg8 {[%clk 0:00:01]} 41. Re8+ {[%clk 0:00:37]}  Bf8 {[%clk 0:00:01]} 42. Rxf8+ {[%clk 0:00:35]}  Kxf8 {[%clk 0:00:01]} 43. Qh8# {[%clk 0:00:36]} 1-0


[Site "https://www.chess.com"]